fUST/lending_fUST_20250828
["ID","MTS","AMOUNT","RATE_DAILY","PERIOD"]
[381832659,1756362655103,-151.0,0.00019912,2]
[381832660,1756362655112,-500.0,0.00019912,2]
[381832661,1756362655122,-151.0,0.00019912,2]
[381832662,1756362655132,-500.0,0.00019912,2]
[381832663,1756362655141,-500.0,0.00019912,2]
[381832664,1756362655343,-500.0,0.00019912,2]
[381832665,1756362655354,-500.0,0.00019912,2]
[381832666,1756362655363,-1213.0,0.00019912,2]
[381832667,1756362655372,-151.0,0.00019912,2]
[381832668,1756362655381,-151.0,0.00019912,2]
[381832669,1756362655390,-500.0,0.00019912,2]
[381832670,1756362655400,-500.0,0.00019912,2]
[381832671,1756362655410,-151.0,0.00019912,2]
[381832672,1756362655423,-500.0,0.00019912,2]
[381832673,1756362655432,-151.43634913,0.00019912,2]
[381832674,1756362655441,-151.0,0.00019912,2]
[381832675,1756362655451,-151.0,0.00019912,2]
[381832676,1756362655460,-151.0,0.00019912,2]
[381832677,1756362655470,-500.0,0.00019912,2]
[381832678,1756362655479,-151.0,0.00019912,2]
[381832679,1756362655489,-151.80152458,0.00019912,2]
[381832680,1756362655499,-300.0,0.00019912,2]
[381832681,1756362655508,-151.0,0.00019912,2]
[381832682,1756362655517,-500.0,0.00019912,2]
[381832683,1756362655527,-500.0,0.00019912,2]
[381832684,1756362655536,-500.0,0.00019912,2]
[381832685,1756362655546,-500.0,0.00019912,2]
[381832686,1756362655556,-500.0,0.00019912,2]
[381832687,1756362655565,-500.0,0.00019912,2]
[381832688,1756362655575,-500.0,0.00019912,2]
[381832689,1756362655586,-500.0,0.00019912,2]
[381832690,1756362655595,-500.0,0.00019912,2]
[381832691,1756362655605,-500.0,0.00019912,2]
[381832692,1756362655614,-151.0,0.00019912,2]
[381832693,1756362655623,-151.0,0.00019912,2]
[381832694,1756362655633,-151.0,0.00019912,2]
[381832695,1756362655644,-500.0,0.00019912,2]
[381832696,1756362655653,-253.0,0.00019929,2]
[381832697,1756362655663,-548.43,0.00019966,2]
[381832698,1756362655672,-480.0,0.00019966,2]
[381832699,1756362655681,-560.82,0.00019966,2]
[381832700,1756362655690,-5547.73,0.00019966,2]
[381832701,1756362655700,-1153.63,0.00019966,2]
[381832702,1756362655709,-4536.34,0.00019966,2]
[381832703,1756362655719,-543.34,0.00019966,2]
[381832704,1756362655729,-480.0,0.00019966,2]
[381832705,1756362655739,-1212.65,0.00019966,2]
[381832706,1756362655748,-1143.89,0.00019966,2]
[381832707,1756362655758,-480.0,0.00019966,2]
[381832708,1756362655768,-491.25,0.00019966,2]
[381832709,1756362655777,-480.0,0.00019968,2]
[381832710,1756362655787,-480.0,0.00019968,2]
[381832711,1756362655797,-480.0,0.00019968,2]
[381832712,1756362655807,-480.0,0.00019968,2]
[381832713,1756362655817,-480.0,0.00019968,2]
[381832714,1756362655826,-480.0,0.00019968,2]
[381832715,1756362655838,-403.88139349,0.00019968,2]
[381832716,1756362655847,-480.0,0.00019968,2]
[381832717,1756362655856,-480.0,0.00019968,2]
[381832718,1756362655866,-151.0,0.00019968,2]
[381832719,1756362655875,-151.0,0.00019968,2]
[381832720,1756362655885,-151.0,0.00019968,2]
[381832721,1756362655894,-151.0,0.00019968,2]
[381832722,1756362655903,-151.0,0.00019968,2]
[381832723,1756362655913,-182.576,0.00019968,2]
[381832724,1756362655922,-182.576,0.00019968,2]
[381832725,1756362655931,-182.576,0.00019968,2]
[381832726,1756362655941,-182.576,0.00019968,2]
[381832727,1756362655950,-151.0,0.00019968,2]
[381832728,1756362655960,-480.0,0.00019969,2]
[381832729,1756362655970,-361.5,0.00019969,2]
[381832730,1756362655980,-361.5,0.00019969,2]
[381832731,1756362655989,-361.5,0.00019969,2]
[381832732,1756362655999,-361.5,0.00019969,2]
[381832733,1756362656008,-361.5,0.00019969,2]
[381832734,1756362656018,-361.5,0.00019969,2]
[381832735,1756362656028,-361.49,0.00019969,2]
[381832736,1756362656037,-291.507741,0.00019969,2]
[381832737,1756362656047,-151.0,0.00019969,2]
[381832738,1756362656056,-151.0,0.00019969,2]
[381832739,1756362656065,-151.0,0.00019969,2]
[381832740,1756362656075,-200.393556,0.00019969,2]
[381832741,1756362656084,-151.0,0.00019969,2]
[381832742,1756362656094,-759.727,0.0001997,2]
[381832743,1756362656103,-500.0,0.00019973,2]
[381832744,1756362656112,-560.88111768,0.00019973,2]
[381832745,1756362656122,-508.78846885,0.00019973,2]
[381832746,1756362656138,-500.0,0.00019973,2]
[381832747,1756362656148,-500.0,0.00019973,2]
[381832748,1756362656157,-500.0,0.00019973,2]
[381832749,1756362656167,-500.0,0.00019973,2]
[381832750,1756362656178,-500.0,0.00019973,2]
[381832751,1756362656188,-500.0,0.00019973,2]
[381832752,1756362656197,-500.0,0.00019973,2]
[381832753,1756362656207,-400.57091245,0.00019973,2]
[381832754,1756362656216,-500.0,0.00019973,2]
[381832755,1756362656225,-608.23649162,0.00019973,2]
[381832756,1756362656235,-500.0,0.00019973,2]
[381832757,1756362656245,-500.0,0.00019973,2]
[381832758,1756362656254,-500.0,0.00019973,2]
[381832759,1756362656264,-500.0,0.00019973,2]
[381832760,1756362656274,-500.0,0.00019973,2]
[381832761,1756362656283,-500.0,0.00019973,2]
[381832762,1756362656292,-500.0,0.00019973,2]
[381832763,1756362656303,-500.0,0.00019973,2]
[381832764,1756362656312,-500.0,0.00019973,2]
[381832765,1756362656322,-500.0,0.00019973,2]
[381832766,1756362656331,-500.0,0.00019973,2]
[381832767,1756362656341,-500.0,0.00019973,2]
[381832768,1756362656351,-500.0,0.00019973,2]
[381832769,1756362656362,-501.38655581,0.00019973,2]
[381832770,1756362656372,-500.0,0.00019973,2]
[381832771,1756362656383,-500.0,0.00019973,2]
[381832772,1756362656392,-500.0,0.00019973,2]
[381832773,1756362656402,-500.0,0.00019973,2]
[381832774,1756362656414,-500.0,0.00019973,2]
[381832775,1756362656425,-500.0,0.00019973,2]
[381832776,1756362656435,-500.0,0.00019973,2]
[381832777,1756362656445,-500.0,0.00019973,2]
[381832778,1756362656454,-281.11168198,0.00019973,2]
[381832779,1756362659008,-738.65,0.00019178,2]
[381832780,1756362659018,-348.89396022,0.00019178,2]
[381832781,1756362659027,-151.0,0.0001945,2]
[381832782,1756362659036,-151.0,0.0001945,2]
[381832783,1756362659046,-151.0,0.0001945,2]
[381832784,1756362659055,-151.0,0.00019452,2]
[381832785,1756362659064,-151.0,0.00019452,2]
[381832786,1756362659073,-738.65,0.00019452,2]
[381832787,1756362659082,-151.0,0.00019726,2]
[381832788,1756362659092,-151.0,0.00019726,2]
[381832789,1756362659101,-738.65,0.00019726,2]
[381832790,1756362659111,-151.0,0.00019969,2]
[381832791,1756362659121,-151.0,0.00019969,2]
[381832792,1756362659132,-218.88831802,0.00019973,2]
[381832793,1756362659141,-500.0,0.00019973,2]
[381832794,1756362659151,-500.0,0.00019973,2]
[381832795,1756362659161,-500.0,0.00019973,2]
[381832796,1756362659170,-500.0,0.00019973,2]
[381832797,1756362659180,-500.0,0.00019973,2]
[381832798,1756362659190,-500.0,0.00019973,2]
[381832799,1756362659200,-500.0,0.00019973,2]
[381832800,1756362659209,-500.0,0.00019973,2]
[381832801,1756362659218,-500.0,0.00019973,2]
[381832802,1756362659226,-500.72602518,0.00019973,2]
[381832803,1756362659235,-500.0,0.00019973,2]
[381832804,1756362659244,-500.0,0.00019973,2]
[381832805,1756362659253,-324.89169658,0.00019973,2]
[381832806,1756362659269,-288.055807,0.00019452,2]
[381832807,1756362659277,-175.10830342,0.00019973,2]
[381832808,1756362659286,-556.45277575,0.00019973,2]
[381832809,1756362659295,-500.0,0.00019973,2]
[381832810,1756362659304,-500.0,0.00019973,2]
[381832811,1756362659313,-20.95373048,0.00019973,2]
[381832812,1756362659935,-5000.0,0.00018986,2]
[381832813,1756362659944,-480.0,0.00019178,2]
[381832814,1756362659954,-487.92,0.00019178,2]
[381832815,1756362659963,-480.0,0.00019178,2]
[381832816,1756362659973,-480.0,0.00019178,2]
[381832817,1756362659982,-480.0,0.00019178,2]
[381832818,1756362659992,-99.976031,0.00019452,2]
[381832819,1756362660003,-177.833969,0.00019452,2]
[381832820,1756362660014,-463.16826232,0.00019452,2]
[381832821,1756362660025,-16.83173768,0.00019452,2]
[381832822,1756362660037,-479.04626952,0.00019973,2]
[381832823,1756362660047,-500.0,0.00019973,2]
[381832824,1756362660057,-500.0,0.00019973,2]
[381832825,1756362660067,-153.266152,0.00019973,2]
[381832826,1756362660076,-151.0,0.00019973,2]
[381832827,1756362660086,-151.0,0.00019973,2]
[381832828,1756362660095,-837.428078,0.00019973,2]
[381832829,1756362660105,-837.428078,0.00019973,2]
[381832830,1756362660114,-837.428078,0.00019973,2]
[381832831,1756362660123,-151.0,0.00019973,2]
[381832832,1756362660133,-837.428078,0.00019973,2]
[381832833,1756362660143,-151.0,0.00019973,2]
[381832834,1756362660152,-151.0,0.00019973,2]
[381832835,1756362660161,-332.798836,0.00019973,2]
[381832836,1756362660171,-303.35171305,0.00019973,2]
[381832837,1756362663214,2855.00581033,0.00018643,2]
[381832838,1756362663242,2144.99418967,0.00018643,2]
[381832839,1756362670312,5000.0,0.00018643,2]
[381832840,1756362678235,2855.01581033,0.00018643,2]
[381832841,1756362678263,2144.98418967,0.00018643,2]
[381832842,1756362693800,5000.0,0.00018643,2]
[381832843,1756362701817,2855.02581033,0.00018643,2]
[381832844,1756362701843,2144.97418967,0.00018643,2]
[381832845,1756362717466,5000.0,0.00018643,2]
[381832846,1756362725532,2855.03581033,0.00018643,2]
[381832847,1756362725558,2144.96418967,0.00018643,2]
[381832848,1756362736146,741.5049777,0.00018295,2]
[381832849,1756362740809,5000.0,0.00018643,2]
[381832850,1756362748923,2113.54083263,0.00018643,2]
[381832851,1756362748949,2886.45916737,0.00018643,2]
[381832852,1756362764417,5000.0,0.00018643,2]
[381832853,1756362772326,2113.55083263,0.00018643,2]
[381832854,1756362772350,2886.44916737,0.00018643,2]
[381832855,1756362781386,7113.56083263,0.00018227,2]
[381832856,1756362781410,2886.43916737,0.00018227,2]
[381832857,1756362788125,5000.0,0.00018643,2]
[381832858,1756362796653,2113.57083263,0.00018643,2]
[381832859,1756362796677,2886.42916737,0.00018643,2]
[381832860,1756362812885,5000.0,0.00018643,2]
[381832861,1756362822372,2113.58083263,0.00018643,2]
[381832862,1756362822396,2886.41916737,0.00018643,2]
[381832863,1756362839696,5000.0,0.00018643,2]
[381832864,1756362847755,2113.59083263,0.00018643,2]
[381832865,1756362847780,2886.40916737,0.00018643,2]
[381832866,1756362864295,5000.0,0.00018643,2]
[381832867,1756362887767,2113.60083263,0.00018643,2]
[381832868,1756362887792,2886.39916737,0.00018643,2]
[381832869,1756362910447,5000.0,0.00018643,2]
[381832870,1756362934874,2113.61083263,0.00018643,2]
[381832871,1756362934904,2886.38916737,0.00018643,2]
[381832872,1756362958555,5000.0,0.00018643,2]
[381832873,1756362975698,1510.0464836,0.00027397,120]
[381832874,1756362982667,2113.62083263,0.00018643,2]
[381832875,1756362982694,2886.37916737,0.00018643,2]
[381832876,1756362999361,5000.0,0.00018643,2]
[381832877,1756363007983,2113.63083263,0.00018643,2]
[381832878,1756363008011,2886.36916737,0.00018643,2]
[381832879,1756363023239,288.09008906,0.00018643,2]
[381832880,1756363031849,5000.0,0.00018643,2]
[381832881,1756363055319,1825.55074357,0.00018643,2]
[381832882,1756363055348,3174.44925643,0.00018643,2]
[381832883,1756363069809,6825.56074357,0.00018139,2]
[381832884,1756363069836,87.47014653,0.00018139,2]
[381832885,1756363079357,5000.0,0.00018643,2]
[381832886,1756363103318,4912.53985347,0.00018643,2]
[381832887,1756363103344,87.46014653,0.00018643,2]
[381832888,1756363105665,1271.8274892,0.00018284,2]
[381832889,1756363126611,5000.0,0.00018643,2]
[381832890,1756363149926,3640.72236427,0.00018643,2]
[381832891,1756363149983,1359.27763573,0.00018643,2]
[381832892,1756363173711,5000.0,0.00018643,2]
[381832893,1756363181795,3640.73236427,0.00018269,2]
[381832894,1756363181844,1050.77361265,0.00018269,2]
[381832895,1756363197120,5000.0,0.00018643,2]
[381832896,1756363199308,3949.23638735,0.00018643,2]
[381832897,1756363199359,6050.76361265,0.00018643,2]
[381832898,1756363211248,3949.24638735,0.00018643,2]
[381832899,1756363211309,6050.75361265,0.00018643,2]
[381832900,1756363218477,-350.65801082,0.00018699,2]
[381832901,1756363221275,3949.25638735,0.00018643,2]
[381832902,1756363221335,1050.74361265,0.00018643,2]
[381832903,1756363221668,-301.59513655,0.00018699,2]
[381832904,1756363223770,-347.74685263,0.00018699,2]
[381832905,1756363223794,-53.73215053,0.00018761,2]
[381832906,1756363226606,-176.74773164,0.00018761,2]
[381832907,1756363230449,-219.11092854,0.00018761,2]
[381832908,1756363232344,-439.28292527,0.00018761,2]
[381832909,1756363234439,-187.49038957,0.00018761,2]
[381832910,1756363237763,-230.45266918,0.00018761,2]
[381832912,1756363241795,-227.23635041,0.00018761,2]
[381832913,1756363244122,-185.14443571,0.00018761,2]
[381832914,1756363244654,5000.0,0.00018643,2]
[381832915,1756363248458,3949.26638735,0.00018643,2]
[381832916,1756363248519,4100.73361265,0.00018643,2]
[381832917,1756363249465,-175.23044524,0.00018761,2]
[381832918,1756363252245,-238.21785205,0.00018761,2]
[381832919,1756363255214,-23.35412186,0.00018761,2]
[381832920,1756363255238,-246.28146548,0.00018994,2]
[381832921,1756363257477,-156.33392893,0.00018994,2]
[381832922,1756363259806,-196.44033005,0.00018994,2]
[381832923,1756363261864,-423.70156372,0.00018994,2]
[381832924,1756363265245,-207.17181784,0.00018994,2]
[381832925,1756363267830,5000.0,0.00018643,2]
[381832926,1756363268305,-199.782938,0.00018994,2]
[381832927,1756363270564,-251.92313244,0.00018994,2]
[381832928,1756363274458,-305.97573856,0.00018994,2]
[381832929,1756363291428,899.27638735,0.00018643,2]
[381832930,1756363291487,4100.72361265,0.00018643,2]
[381832934,1756363303535,1055.851703,0.00013699,2]
[381832935,1756363314103,4843.43468435,0.00018643,2]
[381832936,1756363314165,156.56531565,0.00018643,2]
[381832937,1756363326114,1792.9348728,0.00018077,2]
[381832938,1756363337887,5000.0,0.00018643,2]
[381832939,1756363343179,959.567501,0.00018044,2]
[381832940,1756363360362,2090.94231055,0.00018065,2]
[381832941,1756363360416,10000.01,0.00018065,2]
[381832942,1756363360482,10000.01,0.00018065,2]
[381832943,1756363360543,10000.01,0.00018065,2]
[381832944,1756363360601,10000.01,0.00018065,2]
[381832945,1756363360654,10000.01,0.00018065,2]
[381832946,1756363360708,10000.01,0.00018065,2]
[381832947,1756363360759,10000.01,0.00018065,2]
[381832948,1756363360814,10000.01,0.00018065,2]
[381832949,1756363360868,10000.01,0.00018065,2]
[381832950,1756363360896,79.63156576,0.00018065,2]
[381832951,1756363360920,293.34184249,0.00018065,2]
[381832952,1756363360951,7536.0942812,0.00018065,2]
[381832953,1756363361614,-329.18736648,0.00018643,2]
[381832954,1756363366137,-265.15771283,0.00018643,2]
[381832955,1756363369419,-422.82178038,0.00018643,2]
[381832956,1756363371043,-392.30406649,0.00018643,2]
[381832957,1756363373329,-190.7112023,0.00018643,2]
[381832958,1756363375610,-205.9939828,0.00018643,2]
[381832959,1756363378498,-275.76286768,0.00018643,2]
[381832960,1756363383250,-202.86858547,0.00018643,2]
[381832961,1756363386216,-176.30325414,0.00018643,2]
[381832962,1756363387815,-168.94994048,0.00018643,2]
[381832963,1756363389534,-179.20355683,0.00018643,2]
[381832964,1756363462110,209.0821874,0.00018043,2]
[381832965,1756363472695,3587.57617845,0.00018414,7]
[381832966,1756363517548,666.0,0.00018021,2]
[381832967,1756363537714,248.95741482,0.00018542,2]
[381832968,1756363559023,5000.0,0.000186,2]
[381832969,1756363562045,158.73558835,0.00018543,2]
[381832970,1756363572399,129.65863098,0.00018542,2]
[381832971,1756363572458,47.35347047,0.00018542,2]
[381832972,1756363578566,6756.187236,0.00017884,2]
[381832973,1756363583410,3196.46929353,0.000186,2]
[381832974,1756363583462,1803.53070647,0.000186,2]
[381832975,1756363607163,5000.0,0.000186,2]
[381832976,1756363620782,-230.25978769,0.00018642,2]
[381832977,1756363622902,-23.74021231,0.00018642,2]
[381832978,1756363622927,-277.97131409,0.00018642,2]
[381832979,1756363626903,-171.84779506,0.00018642,2]
[381832980,1756363629770,-173.97908705,0.00018642,2]
[381832981,1756363631104,3196.47929353,0.000186,2]
[381832982,1756363631164,1803.52070647,0.000186,2]
[381832983,1756363631957,-327.70995805,0.00018642,2]
[381832984,1756363634172,-198.149449,0.00018642,2]
[381832985,1756363637416,-50.34239675,0.00018642,2]
[381832986,1756363637439,-168.95891923,0.00018643,2]
[381832988,1756363640441,-177.72108077,0.00018643,2]
[381832989,1756363643335,-294.61856524,0.00018643,2]
[381832990,1756363645775,-168.048268,0.00018643,2]
[381832991,1756363647920,-300.0,0.00018643,2]
[381832992,1756363652513,-299.63553772,0.00018643,2]
[381832993,1756363653992,5000.0,0.000186,2]
[381832994,1756363654357,1000.0,0.00017895,2]
[381832995,1756363656519,-374.65611712,0.00018643,2]
[381832996,1756363661805,-202.28306803,0.00018643,2]
[381832997,1756363664912,-158.73558834,0.00018602,2]
[381832998,1756363664939,-85.25456115,0.00018643,2]
[381832999,1756363667472,-178.02437,0.00018643,2]
[381833000,1756363669757,-242.13065232,0.00018643,2]
[381833001,1756363676271,-186.03645096,0.00018643,2]
[381833002,1756363677822,2196.48929353,0.000186,2]
[381833003,1756363677876,2803.51070647,0.000186,2]
[381833004,1756363678067,-165.0307003,0.00018602,2]
[381833005,1756363681715,-134.60483742,0.00018602,2]
[381833006,1756363681737,-134.0913327,0.00018643,2]
[381833007,1756363682498,5916.6630115,0.00018069,2]
[381833008,1756363684761,-180.135331,0.00018643,2]
[381833009,1756363685532,-2156.0,0.00018643,2]
[381833010,1756363685594,-2593.50425424,0.00018643,2]
[381833011,1756363685957,-501.00149152,0.00018643,2]
[381833012,1756363686026,-1200.0,0.00018702,2]
[381833013,1756363686096,-300.0,0.00018702,2]
[381833014,1756363686166,-500.0,0.00018703,2]
[381833015,1756363686241,-500.0,0.00018703,2]
[381833016,1756363686309,-500.0,0.00018703,2]
[381833017,1756363686399,-500.0,0.00018703,2]
[381833018,1756363686477,-543.49785118,0.00018703,2]
[381833019,1756363686557,-411.0113146,0.00018703,2]
[381833020,1756363686854,-88.9886854,0.00018703,2]
[381833021,1756363686928,-500.0,0.00018703,2]
[381833022,1756363687003,-500.0,0.00018703,2]
[381833023,1756363687075,-500.0,0.00018703,2]
[381833024,1756363687155,-500.0,0.00018703,2]
[381833025,1756363687230,-500.0,0.00018703,2]
[381833026,1756363687303,-500.0,0.00018703,2]
[381833027,1756363687374,-1000.0,0.00018796,2]
[381833028,1756363687446,-411.53480749,0.00018796,2]
[381833029,1756363687519,-158.73558834,0.00018958,2]
[381833030,1756363687583,-243.91909948,0.00018958,2]
[381833031,1756363687980,-243.91909946,0.00018976,2]
[381833032,1756363688052,-391.23175679,0.00018994,2]
[381833033,1756363688115,-243.91909946,0.00018994,2]
[381833034,1756363688177,-237.57116199,0.00018999,2]
[381833035,1756363688215,-162.85703326,0.00019,2]
[381833037,1756363690646,-418.6261776,0.00019,2]
[381833038,1756363692958,-289.42879766,0.00019,2]
[381833039,1756363695014,-300.0,0.00019,2]
[381833040,1756363697047,-166.2906419,0.00019,2]
[381833042,1756363699404,-311.39885059,0.00019,2]
[381833043,1756363701138,-296.78545239,0.00019,2]
[381833045,1756363761128,-219.12268091,0.0001881,2]
[381833046,1756363785478,337.15578653,0.0001843,2]
[381833047,1756363786398,2227.55540446,0.00018414,7]
[381833133,1756363839099,-1181.07227489,0.0001881,2]
[381833136,1756363839119,-735.2855537,0.0001881,2]
[381833322,1756363840994,-0.05720654,0.0001881,2]
[381833327,1756363841033,-1978.15800374,0.0001881,2]
[381833337,1756363841116,-886.30428022,0.0001881,2]
[381833339,1756363841126,-1200.0,0.00018898,2]
[381833341,1756363841135,-300.0,0.00018957,2]
[381833343,1756363841145,-300.0,0.00018957,2]
[381833345,1756363841155,-300.0,0.00018957,2]
[381833347,1756363841164,-615.94420569,0.00018957,2]
[381833349,1756363841174,-2117.60321611,0.00018958,2]
[381833351,1756363841183,-114291.84777759,0.00019,2]
[381833353,1756363841193,-1468.79,0.00019058,3]
[381833355,1756363841202,-734.39,0.00019058,3]
[381833357,1756363841212,-367.2,0.00019058,3]
[381833359,1756363841221,-183.6,0.00019058,3]
[381833361,1756363841231,-550.8,0.00019058,3]
[381833363,1756363841240,-29761.07199923,0.00019078,2]
[381833575,1756363843311,-10724.22071054,0.00019078,2]
[381833576,1756363843322,-6242.21525374,0.00019078,2]
[381833577,1756363843420,-337.76410311,0.00019078,2]
[381833899,1756363846549,-11221.34521516,0.00019078,2]
[381833901,1756363846561,-6043.2265517,0.00019078,2]
[381833904,1756363846574,-3994.10089233,0.00019078,2]
[381833906,1756363846587,-1932.02746306,0.00019078,2]
[381833911,1756363846601,-694.50938659,0.00019078,2]
[381833923,1756363846698,-313.317136,0.00019078,2]
[381833925,1756363846711,-35916.02097439,0.00019078,2]
[381834031,1756363847697,-1090.3460293,0.00019078,2]
[381835304,1756363860859,7435.29880901,0.00018157,2]
[381835310,1756363860917,2564.70119099,0.00018157,2]
[381836098,1756363880954,4025.67411691,0.0001827,2]
[381836645,1756363995330,-176.94009849,0.0001866,2]
[381836646,1756364058115,5000.0,0.000186,2]
[381836647,1756364072591,342.17472118,0.0001827,2]
[381836648,1756364074641,1367.33018582,0.0001827,2]
[381836649,1756364081554,3290.505093,0.000186,2]
[381836650,1756364081606,1709.494907,0.000186,2]
[381836652,1756364104961,176.94009849,0.000181,2]
[381836653,1756364105341,5000.0,0.000186,2]
[381836654,1756364129620,3113.57499451,0.000186,2]
[381836655,1756364129807,1886.42500549,0.000186,2]
[381836656,1756364145955,-221.56378016,0.00018707,2]
[381836657,1756364149899,-300.0,0.00018707,2]
[381836658,1756364153726,5000.0,0.000186,2]
[381836659,1756364154119,-161.9370605,0.00018707,2]
[381836660,1756364176985,3113.58499451,0.000186,2]
[381836661,1756364177060,1886.41500549,0.000186,2]
[381836663,1756364199578,5000.0,0.000186,2]
[381836664,1756364222949,3113.59499451,0.000186,2]
[381836665,1756364223007,1886.40500549,0.000186,2]
[381836666,1756364226998,-246.94704811,0.00018648,2]
[381836667,1756364248235,5000.0,0.000186,2]
[381836668,1756364270950,3113.60499451,0.000186,2]
[381836669,1756364271012,1886.39500549,0.000186,2]
[381836670,1756364294046,5000.0,0.000186,2]
[381836671,1756364316669,3113.61499451,0.000186,2]
[381836672,1756364316729,1886.38500549,0.000186,2]
[381836673,1756364340401,5000.0,0.000186,2]
[381836674,1756364363825,3113.62499451,0.000186,2]
[381836675,1756364363881,1886.37500549,0.000186,2]
[381836676,1756364378610,522.12449362,0.0001836,2]
[381836677,1756364386239,5000.0,0.000186,2]
[381836678,1756364398701,1115.281132,0.00018106,2]
[381836679,1756364417481,435.9482053,0.000181,2]
[381836680,1756364431922,666.0,0.00018076,2]
[381836681,1756364559874,374.28116359,0.00013699,2]
[381836682,1756364559943,628.77795341,0.00013699,2]
[381836684,1756364600989,-180.97037585,0.00018607,2]
[381836685,1756364604741,-234.37505167,0.00018607,2]
[381836686,1756364610045,5000.0,0.000186,2]
[381836687,1756364633966,4371.23204659,0.000186,2]
[381836688,1756364634021,628.76795341,0.000186,2]
[381836689,1756364656814,5000.0,0.000186,2]
[381836690,1756364679960,4371.24204659,0.000186,2]
[381836691,1756364680027,628.75795341,0.000186,2]
[381836692,1756364703019,5000.0,0.000186,2]
[381836693,1756364712322,1059.37,0.000186,2]
[381836694,1756364726708,3311.88204659,0.000186,2]
[381836695,1756364726768,1688.11795341,0.000186,2]
[381836696,1756364751080,5000.0,0.000186,2]
[381836697,1756364760095,823.2074383,0.0001799,2]
[381836698,1756364773617,2488.68460829,0.000186,2]
[381836699,1756364773680,2511.31539171,0.000186,2]
[381836700,1756364796842,5000.0,0.000186,2]
[381836704,1756364819192,2488.69460829,0.000186,2]
[381836705,1756364819251,2511.30539171,0.000186,2]
[381836706,1756364820691,7488.70460829,0.00017973,2]
[381836707,1756364820747,2511.29539171,0.00017973,2]
[381836709,1756364842975,257.91717519,0.00018522,2]
[381836710,1756364843567,5000.0,0.000186,2]
[381836711,1756364859852,1049.75311265,0.000186,2]
[381836712,1756364860354,3000.0,0.00030395,120]
[381836713,1756364867503,1181.04432045,0.000186,2]
[381836714,1756364867566,3818.95567955,0.000186,2]
[381836715,1756364891772,5000.0,0.000186,2]
[381836716,1756364915602,1181.05432045,0.000186,2]
[381836717,1756364915659,3818.94567955,0.000186,2]
[381836718,1756364938503,5000.0,0.000186,2]
[381836720,1756364951115,-219.12268091,0.00018618,2]
[381836721,1756364962219,1181.06432045,0.000186,2]
[381836722,1756364962275,3818.93567955,0.000186,2]
[381836724,1756364978523,617.34538621,0.00018026,2]
[381836725,1756364980801,2469.38154484,0.00018026,2]
[381836726,1756364983034,3094.3473894,0.00018026,2]
[381836727,1756364983086,2461.7610865,0.00018026,2]
[381836728,1756364984618,1066.48899279,0.00018124,2]
[381836729,1756364986809,4265.95597115,0.00018124,2]
[381836730,1756364986870,2205.80394956,0.000186,2]
[381836731,1756364986926,2794.19605044,0.000186,2]
[381836732,1756364987457,297.42030294,0.00018146,2]
[381836736,1756365010151,5000.0,0.000186,2]
[381836930,1756365034345,1908.39364662,0.000186,2]
[381836937,1756365034410,3091.60635338,0.000186,2]
[381836956,1756365038742,-3571.02453522,0.00018606,2]
[381836957,1756365038751,-462.40853284,0.00018617,2]
[381836958,1756365038761,-1936.87731909,0.00018618,2]
[381836959,1756365038770,-300.0,0.00018705,2]
[381836960,1756365038780,-1146.0,0.00018705,2]